Cogmind - Beta 16.1 @@@ ROGUE MODE // 2026.06.20 @ 01:02:48 Player: Artackni Result: Destroyed by Y-72 Warden with Railgun Performance ------------- Evolutions (7) 3500 Regions Visited (22) 4400 Robots Destroyed (82) 410 Value Destroyed (2154) 2154 Prototype IDs (41) 820 Alien Tech Used (1) 200 Bonus (16256) 16256 TOTAL SCORE: 27740 Bonus ------- Inhibited Evolution 14000 High Alert Combat Kills 135 Entered Garrisons 200 Entered DSFs 500 Aligned with FarCom 300 Met Zhirov 300 Met Warlord at Base 500 MAIN.C Attacked Warlord 500 Friendly Fire -179 Cogmind --------- Core Integrity 0/1300 Matter 90/300 Energy 99/100 System Corruption 5% Temperature Cool (0) Movement Core (50) Location -3/Research Parts ------- > --- POWER (1) -------- (None) > --- PROPULSION (2) --- (None) > --- UTILITY (9) ------ Advanced Signal Interpreter > --- WEAPON (2) ------- Maul > --- INVENTORY (5) ---- Hypervelocity Mass Driver Fusion Bomb Launcher Deploy-a-Sentry Deploy-a-Sentry Deploy-a-Sentry Peak State ------------ > --- POWER ------------ (None) > --- PROPULSION ------- (None) > --- UTILITY ---------- Small Storage Unit Advanced Weight Redist. System Machine Analyzer Advanced Sensor Array Advanced Signal Interpreter Improved Melee Analysis Suite Cloaking Device Improved Hacking Suite > --- WEAPON ----------- Vortex Catalyst Activator > --- INVENTORY -------- Energy Well Advanced Weight Redist. System Transdimensional Reconstructor Heavy Missile Launcher Spear Deploy-a-Sentry Deploy-a-Sentry Deploy-a-Sentry [Rating: 54] Favorites ----------- Power Light Ion Engine Engine Light Ion Engine Power Core Micro Fission Core Propulsion Backup Propulsion III Hover Unit Backup Propulsion III Utility Machine Analyzer Device Advanced Weight Redist. System Storage Small Storage Unit Processor Machine Analyzer Hackware Improved Hacking Suite Weapon Spear Energy Gun Small Laser Ballistic Gun Heavy Assault Rifle Ballistic Cannon Hypervelocity Mass Driver Launcher Heavy Missile Launcher Impact Weapon Mace Slashing Weapon Plasma Sword Piercing Weapon Spear Build | -11 -10 -10 -9 -9 -9 -8 -8 -7 -7 -7 -6 -5 -5 -5 -5 -4 -4 -4 -4 -4 -3 -3 ------- Run | Yrd Mat Min Mat Min Exi Min Mat Fac DSF Gar Fac Fac Upp Upp Zhi Pro Fac Upp Upp War Pro Res Slots Evolved 7 | . . . 1 . . . 1 1 . . 1 1 . . . . 1 . . . . 1 Power . | . . . . . . . . . . . . . . . . . . . . . . . Propulsion . | . . . . . . . . . . . . . . . . . . . . . . . Utility 7 | . . . 1 . . . 1 1 . . 1 1 . . . . 1 . . . . 1 Weapon . | . . . . . . . . . . . . . . . . . . . . . . . Parts Attached 52 | 3 1 . 5 . . 1 10 1 . . 6 5 1 . 3 . 5 . . 3 . 8 Power 7 | . . . 1 . . . 2 . . . 1 2 . . 1 . . . . . . . Engine 6 | . . . 1 . . . 2 . . . 1 1 . . 1 . . . . . . . Core 1 | . . . . . . . . . . . . 1 . . . . . . . . . . Reactor . | . . . . . . . . . . . . . . . . . . . . . . . Propulsion . | . . . . . . . . . . . . . . . . . . . . . . . Treads . | . . . . . . . . . . . . . . . . . . . . . . . Leg . | . . . . . . . . . . . . . . . . . . . . . . . Wheel . | . . . . . . . . . . . . . . . . . . . . . . . Hover . | . . . . . . . . . . . . . . . . . . . . . . . Flight . | . . . . . . . . . . . . . . . . . . . . . . . Utility 27 | 1 1 . 1 . . 1 5 1 . . 4 3 . . 2 . 3 . . 1 . 4 Device 10 | 1 . . 1 . . . 1 . . . 1 2 . . 1 . 2 . . 1 . . Storage 4 | . . . . . . 1 1 . . . 1 1 . . . . . . . . . . Processor 10 | . 1 . . . . . 3 1 . . 1 . . . . . 1 . . . . 3 Hackware 3 | . . . . . . . . . . . 1 . . . 1 . . . . . . 1 Protection . | . . . . . . . . . . . . . . . . . . . . . . . Artifact . | . . . . . . . . . . . . . . . . . . . . . . . Weapon 18 | 2 . . 3 . . . 3 . . . 1 . 1 . . . 2 . . 2 . 4 Energy Gun 1 | 1 . . . . . . . . . . . . . . . . . . . . . . Energy Cannon . | . . . . . . . . . . . . . . . . . . . . . . . Ballistic Gun 5 | 1 . . 1 . . . 2 . . . . . . . . . . . . 1 . . Ballistic Cannon 1 | . . . . . . . . . . . . . . . . . . . . . . 1 Launcher 3 | . . . . . . . . . . . . . 1 . . . . . . 1 . 1 Special Weapon . | . . . . . . . . . . . . . . . . . . . . . . . Impact Weapon 5 | . . . 2 . . . 1 . . . . . . . . . . . . . . 2 Slashing Weapon 1 | . . . . . . . . . . . . . . . . . 1 . . . . . Piercing Weapon 2 | . . . . . . . . . . . 1 . . . . . 1 . . . . . Special Melee Weapon . | . . . . . . . . . . . . . . . . . . . . . . . Unidentified Prototypes 6 | . . . . . . . . . . . . . . . 2 . 1 . . 2 . 1 Parts Lost 13 | . . . . . . . 3 . 2 . . 1 . 1 . 1 . . . 1 3 1 Power 2 | . . . . . . . . . 1 . . 1 . . . . . . . . . . Propulsion . | . . . . . . . . . . . . . . . . . . . . . . . Utility 8 | . . . . . . . 2 . 1 . . . . 1 . 1 . . . 1 2 . Weapon 3 | . . . . . . . 1 . . . . . . . . . . . . . 1 1 Highest Loss Streak 3 | . . . . . . . 3 . 2 . . 1 . 1 . 1 . . . 1 3 1 To Critical Strikes . | . . . . . . . . . . . . . . . . . . . . . . . Average Backups 3 | 1 3 5 4 5 3 2 1 1 2 2 3 4 4 5 5 4 5 5 5 4 3 1 Power . | . 1 1 . . . . . . . . . . 1 1 . . . . . . . . Propulsion . | . . . . . . . . . . . . . . . . . . . . . . . Utility 1 | . . 1 . . . . . 1 1 1 1 2 2 2 2 2 2 3 3 1 . . Weapon 1 | . 2 3 4 5 3 2 . . . . 1 2 1 2 2 1 1 1 1 1 1 1 Tool/Special . | . . . . . . . . . . . . . . . . . . . . . . . Unused Backups 20 | . . . 2 . 4 . 1 . . . 4 4 . . . . . . . 1 2 2 Power 1 | . . . . . 1 . . . . . . . . . . . . . . . . . Propulsion . | . . . . . . . . . . . . . . . . . . . . . . . Utility 9 | . . . . . . . . . . . 3 4 . . . . . . . 1 1 . Weapon 8 | . . . 2 . 3 . 1 . . . . . . . . . . . . . . 2 Tool/Special 2 | . . . . . . . . . . . 1 . . . . . . . . . 1 . Average Slot Usage (%) 62 | . 51 57 68 75 75 75 69 77 68 60 63 72 76 74 70 75 70 76 76 72 26 16 Engine 3 | . . . 9 12 12 12 8 10 4 . 2 5 8 8 8 8 2 . . . . . Device 15 | . 14 14 22 25 25 24 8 10 10 10 14 15 16 16 16 15 16 23 23 28 5 . Storage 6 | . . . . . . . 8 10 4 . 5 15 16 15 8 8 7 7 7 7 6 . Processor 17 | . 9 14 12 12 12 12 23 27 30 30 27 16 16 16 16 16 20 23 23 14 . 5 Hackware 5 | . . . . . . . . . . . 2 8 8 8 12 16 10 7 7 7 7 5 Ballistic Gun 3 | . 14 14 12 12 12 12 8 10 10 10 3 . . . . . . . . . . . Impact Weapon 3 | . . . 8 12 12 12 11 10 10 10 1 . . . . . . . . . . 5 Piercing Weapon 6 | . . . . . . . . . . . 7 8 8 8 8 8 12 15 15 14 5 . Peak Build Rating 54 | 3 4 4 9 9 11 13 18 21 21 17 26 36 35 31 36 39 45 44 44 54 31 39 Average Rating 25 | 1 3 4 7 9 10 11 15 20 18 17 22 31 31 30 31 36 40 44 44 42 17 14 On Entrance 20 | . 3 4 4 9 9 11 13 18 21 17 17 26 31 31 28 36 33 44 44 44 19 8 Avg Prop Armor Cover (%) . | . . . . . . . . . . . . . . . . . . . . . . . Naked Turns 1 | . . . . . . . . . . . . . . . . . . . . . . 1 Heaviest Build 14 | 3 3 3 9 9 9 9 9 9 9 5 9 14 12 12 11 11 12 11 11 14 7 3 Greatest Support 17 | 3 3 3 9 9 9 9 9 9 9 9 9 12 12 12 12 12 12 12 12 17 12 3 Greatest Overweight (x) 3 | . . . . . . . 1 . . . 2 1 . . . . . . . 3 1 . Average Overweight (x) . | . . . . . . . . . . . . . . . . . . . . . . . Largest Inventory Capacity 8 | 5 5 5 5 5 5 5 5 5 5 5 8 8 8 8 8 8 8 8 8 8 8 5 Average Capacity 6 | 5 5 5 5 5 5 5 5 5 5 5 6 8 8 8 8 8 8 8 8 8 7 5 Most Carried 8 | 2 5 5 5 5 5 5 5 5 5 5 8 8 8 8 8 8 8 8 8 8 8 5 Average Carried 6 | 1 3 5 4 5 4 5 4 4 5 5 6 7 7 8 7 7 7 8 8 7 7 4 Final Capacity 8 | 5 5 5 5 5 5 5 5 5 5 5 8 8 8 8 8 8 8 8 8 8 5 5 Final Carried 8 | 2 5 5 5 5 5 5 4 5 5 5 8 8 8 8 8 8 8 8 8 8 5 5 Class Distribution -------------------- 45% | Mutant 21% | Ninja 19% | Scout 5% | Hacker-Scout 4% | Hacker-Mutant Dominant Class ---------------- Mutant | -10/Materials Mutant | -10/Mines Mutant | -9/Materials Mutant | -9/Mines Mutant | -9/Exiles Mutant | -8/Mines Mutant | -8/Materials Mutant | -7/Factory Mutant | -7/DSF Mutant | -7/Garrison Scout | -6/Factory Scout | -5/Factory Scout | -5/Upper Caves Scout | -5/Upper Caves Hacker-Scout | -5/Zhirov Hacker-Scout | -4/Proximity Caves Ninja | -4/Factory Ninja | -4/Upper Caves Ninja | -4/Upper Caves Ninja | -4/Warlord Mutant | -3/Proximity Caves Mutant | -3/Research Resources | -11 -10 -10 -9 -9 -9 -8 -8 -7 -7 -7 -6 -5 -5 -5 -5 -4 -4 -4 -4 -4 -3 -3 ----------- Run | Yrd Mat Min Mat Min Exi Min Mat Fac DSF Gar Fac Fac Upp Upp Zhi Pro Fac Upp Upp War Pro Res Matter Collected 1515 | 155 . . . 150 . 3 202 . 13 . 88 215 20 18 30 62 47 33 121 80 27 251 Remotely . | . . . . . . . . . . . . . . . . . . . . . . . Salvage Created 2673 | 109 51 . . 66 . 82 444 . 41 . 234 394 46 14 304 127 39 . . . 170 552 Parts 139 | 11 5 . . . . 2 24 . 4 . 11 15 5 2 5 3 6 . . . 8 38 Haulers Intercepted 4 | . 1 . . . . . 1 . . . 1 1 . . . . . . . . . . Recyclers Shooed 2 | . . . . . . . 1 . . . . . . . . . . . . . . 1 Parts Field Recycled . | . . . . . . . . . . . . . . . . . . . . . . . Retrieved Matter . | . . . . . . . . . . . . . . . . . . . . . . . Parts Self-Destructed 14 | . . . . . . . . . . . . . 4 . 5 1 . . . . 4 . Prevented 1 | . . . . . . . . . . . . . . . . 1 . . . . . . Parts Restored . | . . . . . . . . . . . . . . . . . . . . . . . Kills | -11 -10 -10 -9 -9 -9 -8 -8 -7 -7 -7 -6 -5 -5 -5 -5 -4 -4 -4 -4 -4 -3 -3 ------- Run | Yrd Mat Min Mat Min Exi Min Mat Fac DSF Gar Fac Fac Upp Upp Zhi Pro Fac Upp Upp War Pro Res Combat Hostiles Destroyed 43 | . . . . . . . 3 . 2 . 1 . 5 . . 3 . . . . 11 18 Melee 2 | . . . . . . . . . . . 1 . . . . 1 . . . . . . Guns 5 | . . . . . . . 3 . 2 . . . . . . . . . . . . . Cannons 4 | . . . . . . . . . . . . . . . . . . . . . . 4 AOE 31 | . . . . . . . . . . . . . 5 . . 2 . . . . 11 13 Classes Destroyed 11 | 1 1 . . 1 . 1 3 . 1 . 1 . 1 . . 1 . . . . . . Worker 19 | . . . . . . . 5 . . . 3 7 . . . . 2 . . . . 2 Tunneler 9 | 5 . . . . . . 1 . . . 1 1 . . . . . . . . . 1 Hauler 4 | . 1 . . . . . 1 . . . 1 1 . . . . . . . . . . Recycler 4 | . . . . . . 1 1 . . . . 1 . . . . . . . . . 1 Drone 2 | . . . . . . . . . . . . . . . . 2 . . . . . . Watcher 2 | . . . . . . . 1 . . . 1 . . . . . . . . . . . Swarmer 29 | . . . . . . . . . . . . . 5 . . 1 . . . . 10 13 Cutter 2 | . . . . . . . . . 2 . . . . . . . . . . . . . Grunt 2 | . . . . . . . . . . . . . . . . . . . . . 1 1 Sentry 3 | . . . . . . . 3 . . . . . . . . . . . . . . . Programmer 5 | . . . . . . . . . . . 1 . . . . . . . . . . 4 Decomposer 1 | . . . . . . . . . . . . . . 1 . . . . . . . . Thug 1 | . . . . 1 . . . . . . . . . . . . . . . . . . Best Kill Streak 6 | 4 1 . . . . 1 3 . 2 . 2 3 5 . . 2 2 . . . 6 6 Combat Bots Only 6 | . . . . . . . 1 . 2 . 1 . 5 . . 2 . . . . 6 5 Max Kills in Single Turn 5 | 1 1 . . 1 . 1 1 . 1 . 1 1 3 1 . 1 1 . . . 5 5 Gunslinging . | . . . . . . . . . . . . . . . . . . . . . . . Exploded 5 | . . . . . . . . . . . . . 3 . . 1 . . . . 5 5 Melee 1 | . . . . . . . . . . . 1 . . . . 1 . . . . . . Uniques/NPCs Destroyed . | . . . . . . . . . . . . . . . . . . . . . . . Combat | -11 -10 -10 -9 -9 -9 -8 -8 -7 -7 -7 -6 -5 -5 -5 -5 -4 -4 -4 -4 -4 -3 -3 -------- Run | Yrd Mat Min Mat Min Exi Min Mat Fac DSF Gar Fac Fac Upp Upp Zhi Pro Fac Upp Upp War Pro Res Hostile Shots Fired 332 | . . . 2 . . 3 44 . 17 . 4 5 7 2 . 5 2 . 2 15 77 147 Missed 153 | . . . . . . 1 11 . 10 . 2 1 2 1 . 3 2 . 1 4 37 78 Hits 179 | . . . 2 . . 2 33 . 7 . 2 4 5 1 . 2 . . 1 11 40 69 Melee 4 | . . . . . . . . . 1 . . . . . . . . . . 3 . . Projectile 175 | . . . 2 . . 2 33 . 6 . 2 4 5 1 . 2 . . 1 8 40 69 AOE 1 | . . . . . . . . . 1 . . . . . . . . . . . . . Critical Strikes 5 | . . . . . . . 3 . 1 . . . . . . . . . . . 1 . Part Disruptions 1 | . . . . . . . . . . . . . . . . . . . . . . 1 Damage Taken 3951 | . . . 32 . . 35 473 . 162 . 32 145 70 18 . 39 . . 21 235 972 1717 Core 2568 | . . . 17 . . 18 157 . 77 . 16 97 31 . . 13 . . 21 175 646 1300 Absorbed by Shields . | . . . . . . . . . . . . . . . . . . . . . . . Regen/Repaired (Parts) 10 | . . . . . . . . . . . . 10 . . . . . . . . . . Core Remaining (%) 82 | 100 . 100 . . . 91 71 . . 89 98 . . . . 85 . . . . 26 . Volleys Fired 90 | 8 7 . . 1 . . 33 . 2 . 7 . 2 . . 3 . . . . 6 21 Largest 2 | 2 2 . . 1 . . 1 . 1 . 1 . 1 . . 1 . . . . 1 1 Hottest 60 | 60 60 . . 23 . . 23 . 23 . 23 . 39 . . 39 . . . . 39 56 Shots Fired 105 | 16 14 . . 1 . . 33 . 2 . 7 . 2 . . 3 . . . . 6 21 Gun 73 | 16 14 . . 1 . . 33 . 2 . 7 . . . . . . . . . . . Cannon 12 | . . . . . . . . . . . . . . . . . . . . . . 12 Launcher 20 | . . . . . . . . . . . . . 2 . . 3 . . . . 6 9 Special . | . . . . . . . . . . . . . . . . . . . . . . . Kinetic 70 | 8 7 . . 1 . . 33 . 2 . 7 . . . . . . . . . . 12 Thermal 15 | 8 7 . . . . . . . . . . . . . . . . . . . . . Explosive 18 | . . . . . . . . . . . . . 2 . . 3 . . . . 5 8 Electromagnetic . | . . . . . . . . . . . . . . . . . . . . . . . Entropic 2 | . . . . . . . . . . . . . . . . . . . . . 1 1 Robot Hit Streak 7 | 5 5 . . . . . 7 . 4 . 5 . 2 . . . . . . . 3 5 Robot Miss Streak 4 | 1 1 . . 1 . . 2 . 1 . 4 . 1 . . . . . . . 1 3 Penetration Max . | . . . . . . . . . . . . . . . . . . . . . . . Secondary Targets . | . . . . . . . . . . . . . . . . . . . . . . . Shots Hit Robots 115 | 10 9 . . 1 . 1 38 . 2 . 10 11 1 1 6 2 4 . . . 4 15 Core Hits 90 | 6 3 . . . . . 12 . 2 . 5 7 5 1 2 4 2 . . . 19 22 Critical Kills 5 | . . . . . . . 1 . . . . . . . . . . . . . . 4 Critical Parts Destroyed 7 | . . . . . . . 1 . . . . . . . . . . . . . . 6 Critical Strikes 13 | . . . . . . . 2 . . . . . . . 1 . . . . . . 10 Destroy 7 | . . . . . . . 1 . . . . . . . . . . . . . . 6 Smash 5 | . . . . . . . 1 . . . . . . . . . . . . . . 4 Impale 1 | . . . . . . . . . . . . . . . 1 . . . . . . . Melee Attacks 133 | . . . 1 1 . 1 25 4 1 1 11 28 . 5 7 6 15 . 2 1 . 24 Impact 61 | . . . 1 1 . 1 25 4 1 1 3 . . . . . . . . . . 24 Slashing . | . . . . . . . . . . . . . . . . . . . . . . . Piercing 72 | . . . . . . . . . . . 8 28 . 5 7 6 15 . 2 1 . . Sneak Attacks 26 | . . . . 1 . 1 6 . . . 2 10 . 1 . . 2 . . . . 3 Combat Hostiles . | . . . . . . . . . . . . . . . . . . . . . . . Follow-up Attacks 1 | . . . . . . . . . . . . . . . . . 1 . . . . . Damage Inflicted 8012 | 92 90 . . 79 . 84 1002 . 18 . 297 628 401 57 358 246 186 . . . 1571 2903 Guns 677 | 92 90 . . . . . 401 . 18 . 76 . . . . . . . . . . . Cannons 145 | . . . . . . . . . . . . . . . . . . . . . . 145 Explosions 4580 | . . . . . . . . . . . . . 401 . . 156 . . . . 1571 2452 Melee 2606 | . . . . 79 . 84 601 . . . 221 628 . 57 358 90 186 . . . . 302 Ramming 4 | . . . . . . . . . . . . . . . . . . . . . . 4 Kinetic 725 | 29 56 . . . . . 401 . 18 . 76 . . . . . . . . . . 145 Thermal 97 | 63 34 . . . . . . . . . . . . . . . . . . . . . Explosive 2854 | . . . . . . . . . . . . . 401 . . 156 . . . . 667 1630 Electromagnetic . | . . . . . . . . . . . . . . . . . . . . . . . Impact 1218 | . . . . 79 . 84 601 . . . 152 . . . . . . . . . . 302 Slashing . | . . . . . . . . . . . . . . . . . . . . . . . Piercing 1388 | . . . . . . . . . . . 69 628 . 57 358 90 186 . . . . . Entropic 1726 | . . . . . . . . . . . . . . . . . . . . . 904 822 Highest Corruption 5 | . 1 1 . . . . . . 1 1 . . . . . . . . . . . 5 Average Corruption 2 | . 1 1 . . . . . . 1 1 . . . . . . . . . . . 4 Corruption Purged . | . . . . . . . . . . . . . . . . . . . . . . . Corruption Blocked . | . . . . . . . . . . . . . . . . . . . . . . . Effects 16 | . 1 1 . . . . . . 1 1 . . . . . . . . . . . 12 Message Errors 5 | . . 1 . . . . . . . . . . . . . . . . . . . 4 Matter Fused 2 | . . . . . . . . . 1 . . . . . . . . . . . . 1 Heat Flow Errors 2 | . . . . . . . . . . . . . . . . . . . . . . 2 Energy Discharges 5 | . . . . . . . . . . . . . . . . . . . . . . 5 Data Loss (minor) 2 | . 1 . . . . . . . . 1 . . . . . . . . . . . . Overload Shots . | . . . . . . . . . . . . . . . . . . . . . . . Overflow Damage 1257 | . . . . 39 . 54 122 . . . 88 115 28 . 218 . 5 . . . 49 539 Projectiles . | . . . . . . . . . . . . . . . . . . . . . . . Explosions 314 | . . . . . . . . . . . . . 28 . . . . . . . 49 237 Melee 943 | . . . . 39 . 54 122 . . . 88 115 . . 218 . 5 . . . . 302 Knockbacks 4 | . . . . 1 . . 1 . . . . . . . . . . . . . . 2 Impact 4 | . . . . 1 . . 1 . . . . . . . . . . . . . . 2 Kinetic . | . . . . . . . . . . . . . . . . . . . . . . . Secondary . | . . . . . . . . . . . . . . . . . . . . . . . Self-Inflicted Damage 313 | . . . . . . . . . . . . . . . . . . . . . 7 306 Shots 6 | . . . . . . . . . . . . . . . . . . . . . 1 5 Rammed 2 | . . . . . . . . . . . . . . . . . . . . . . 2 Targets Rammed 2 | . . . . . . . . . . . . . . . . . . . . . . 2 Kicked . | . . . . . . . . . . . . . . . . . . . . . . . Crushed . | . . . . . . . . . . . . . . . . . . . . . . . Highest Temperature 252 | 20 20 . . . . . 12 . . . . . . . . . 252 . . . . 225 Average Temperature 41 | 8 8 . . . . . 6 . . . . . . . . . 144 . . . . 93 Received Heat Transfer 444 | . . . 9 . . 18 216 . . . . 18 . . . . . . . 21 45 117 Siege Activations . | . . . . . . . . . . . . . . . . . . . . . . . Martial Activations . | . . . . . . . . . . . . . . . . . . . . . . . Shielding Activations . | . . . . . . . . . . . . . . . . . . . . . . . Robots Disrupted . | . . . . . . . . . . . . . . . . . . . . . . . Combat Hostiles . | . . . . . . . . . . . . . . . . . . . . . . . Robots Corrupted 6 | . . . . 1 . . 2 . . . 1 . . . . . . . . . . 2 Combat Hostiles . | . . . . . . . . . . . . . . . . . . . . . . . Parts Fried 10 | . . . . 3 . 2 2 . . . 1 . . . . . . . . . . 2 Impact Corruptions 15 | . . . . 1 . 1 4 . . . 2 . . . . . . . . . . 7 Robots Melted . | . . . . . . . . . . . . . . . . . . . . . . . Combat Hostiles . | . . . . . . . . . . . . . . . . . . . . . . . Parts Melted 1 | 1 . . . . . . . . . . . . . . . . . . . . . . Heat Transferred 225 | 150 75 . . . . . . . . . . . . . . . . . . . . . Parts Sabotaged 8 | . . . . . . . . . . . . . . . . . . . . 8 . . Parts Stolen . | . . . . . . . . . . . . . . . . . . . . . . . Parts Stripped . | . . . . . . . . . . . . . . . . . . . . . . . Power Chain Reactions . | . . . . . . . . . . . . . . . . . . . . . . . Alert | -11 -10 -10 -9 -9 -9 -8 -8 -7 -7 -7 -6 -5 -5 -5 -5 -4 -4 -4 -4 -4 -3 -3 ------- Run | Yrd Mat Min Mat Min Exi Min Mat Fac DSF Gar Fac Fac Upp Upp Zhi Pro Fac Upp Upp War Pro Res Maximum Alert Level 4 | . . . . . . . . . . . . . . . . . . . . . . 4 Low Security (%) 83 | 100 100 100 100 100 . 100 100 100 100 100 100 100 . . . . 100 . . . . 1 Level 1 7 | . . . . . . . . . . . . . . . . . . . . . . 45 Level 2 . | . . . . . . . . . . . . . . . . . . . . . . 3 Level 3 6 | . . . . . . . . . . . . . . . . . . . . . . 42 Level 4 1 | . . . . . . . . . . . . . . . . . . . . . . 7 Level 5 . | . . . . . . . . . . . . . . . . . . . . . . . High Security . | . . . . . . . . . . . . . . . . . . . . . . . Max Security . | . . . . . . . . . . . . . . . . . . . . . . . Peak Influence 1110 | 15 30 . 12 45 . 75 55 16 50 38 30 19 . . . . 156 . . . . 1110 Initial 156 | . 3 . . . . . 17 10 . 37 19 . . . . . 156 . . . . 114 Average 125 | 3 13 . 1 9 . 41 14 2 29 37 2 3 . . . . 42 . . . . 686 Influence Increases 2855 | 25 47 . 13 45 . 95 249 18 51 1 97 129 110 . 15 35 210 . 30 105 300 1280 Destroy 0b10 Robot/C 820 | . . . . . . . 60 . 40 . 20 . 100 . . 20 . . . . 220 360 Destroy 0b10 Robot/NC 220 | 25 5 . . . . 5 45 . . . 30 50 . . 15 15 10 . . . . 20 Destroy Leader 142 | . 2 . . . . . 34 . 10 . 14 2 10 . . . . . . . 20 50 Successful Hack 64 | . 10 . 12 . . . 24 . . . 12 6 . . . . . . . . . . Select Force Hacks 50 | . . . . . . . . . . . . . . . . . . . . . . 50 Disable Machine 90 | . . . . . . . . 15 . . . 15 . . . . 15 . . . . 45 Destroy Structure 329 | . . . 1 . . . 11 3 1 1 6 26 . . . . 20 . . . . 260 Advance Influence 150 | . . . . . . . . . . . . . . . . . 150 . . . . . Partial Spotted 60 | . . . . . . . 45 . . . . 15 . . . . . . . . . . Lose Combat Pursuer 930 | . 30 . . 45 . 90 30 . . . 15 15 . . . . 15 . 30 105 60 495 Influence Decreases 1813 | 20 52 . 13 40 5 50 270 42 1 13 135 129 30 80 15 25 220 . 10 87 168 408 Entered New Map 215 | . 2 . . . 5 . 28 14 . 13 19 . . 16 . . 4 . . 20 38 56 Time Decay 1497 | 20 50 . 13 30 . 50 217 28 . . 116 124 30 64 15 15 216 . 10 57 100 342 Lost Part 86 | . . . . . . . 25 . 1 . . . . . . 10 . . . 10 30 10 Lost Ally 15 | . . . . 10 . . . . . . . 5 . . . . . . . . . . Squads Dispatched 18 | . . . 1 . . . . . 1 . 1 3 . . . . 1 . . . 1 10 Investigation 3 | . . . 1 . . . . . . . . . . . . . . . . . . 2 Extermination 7 | . . . . . . . . . . . 1 1 . . . . 1 . . . . 4 Reinforcement 5 | . . . . . . . . . 1 . . 2 . . . . . . . . . 2 Assault 3 | . . . . . . . . . . . . . . . . . . . . . 1 2 Garrison . | . . . . . . . . . . . . . . . . . . . . . . . Intercept . | . . . . . . . . . . . . . . . . . . . . . . . Searches Triggered . | . . . . . . . . . . . . . . . . . . . . . . . Construction Impeded . | . . . . . . . . . . . . . . . . . . . . . . . Haulers Reinforced . | . . . . . . . . . . . . . . . . . . . . . . . Active Scanning Responses . | . . . . . . . . . . . . . . . . . . . . . . . Cargo Convoy Interrupts . | . . . . . . . . . . . . . . . . . . . . . . . Stealth | -11 -10 -10 -9 -9 -9 -8 -8 -7 -7 -7 -6 -5 -5 -5 -5 -4 -4 -4 -4 -4 -3 -3 --------- Run | Yrd Mat Min Mat Min Exi Min Mat Fac DSF Gar Fac Fac Upp Upp Zhi Pro Fac Upp Upp War Pro Res Distress Signals 11 | . 2 . 2 . . . 1 . . . 1 1 . . . . . . . . . 4 Communications Jammed . | . . . . . . . . . . . . . . . . . . . . . . . Distress Signals . | . . . . . . . . . . . . . . . . . . . . . . . Times Spotted 166 | . 7 . 2 3 . 5 11 . 4 . 10 5 5 . . 5 6 . 1 34 18 50 Peak Tracking Total 14 | . 6 . 3 3 . 3 3 . 2 . 3 3 5 . . 3 2 . 2 12 12 14 Tactical Retreats 27 | . 1 . . 1 . 2 1 . . . 1 1 . . . . 1 . 1 5 2 11 Traps | -11 -10 -10 -9 -9 -9 -8 -8 -7 -7 -7 -6 -5 -5 -5 -5 -4 -4 -4 -4 -4 -3 -3 ------- Run | Yrd Mat Min Mat Min Exi Min Mat Fac DSF Gar Fac Fac Upp Upp Zhi Pro Fac Upp Upp War Pro Res Traps Triggered 6 | . 1 . . . . . . . . 1 . . . . . . 1 . . . . 3 Indirectly . | . . . . . . . . . . . . . . . . . . . . . . . Trap Hack Attempts . | . . . . . . . . . . . . . . . . . . . . . . . Triggered . | . . . . . . . . . . . . . . . . . . . . . . . Disarmed . | . . . . . . . . . . . . . . . . . . . . . . . Reprogrammed . | . . . . . . . . . . . . . . . . . . . . . . . Reused . | . . . . . . . . . . . . . . . . . . . . . . . Traps Extracted . | . . . . . . . . . . . . . . . . . . . . . . . Installed . | . . . . . . . . . . . . . . . . . . . . . . . Triggered . | . . . . . . . . . . . . . . . . . . . . . . . Machines | -11 -10 -10 -9 -9 -9 -8 -8 -7 -7 -7 -6 -5 -5 -5 -5 -4 -4 -4 -4 -4 -3 -3 ---------- Run | Yrd Mat Min Mat Min Exi Min Mat Fac DSF Gar Fac Fac Upp Upp Zhi Pro Fac Upp Upp War Pro Res Machines Disabled 6 | . . . . . . . . 1 . . . 1 . . . . 1 . . . . 3 Max in Single Turn 2 | . . . . . . . . 1 . . . 1 . . . . 1 . . . . 2 Garrison Access 1 | . . . . . . . . . . . . 1 . . . . . . . . . . Machines Repaired . | . . . . . . . . . . . . . . . . . . . . . . . Machines Dismantled . | . . . . . . . . . . . . . . . . . . . . . . . Machines Sabotaged 1 | . . . . . . . . . . . . . . . . . . . . . . 1 Overloaded Fab Kills . | . . . . . . . . . . . . . . . . . . . . . . . Hacking | -11 -10 -10 -9 -9 -9 -8 -8 -7 -7 -7 -6 -5 -5 -5 -5 -4 -4 -4 -4 -4 -3 -3 --------- Run | Yrd Mat Min Mat Min Exi Min Mat Fac DSF Gar Fac Fac Upp Upp Zhi Pro Fac Upp Upp War Pro Res Machines Accessed 34 | . 2 . 3 . 1 . 5 2 . . 4 5 . 1 4 . 4 . . 2 . 1 Terminals 20 | . 2 . 3 . . . 4 2 . . 2 3 . . . . 3 . . . . 1 Fabricators . | . . . . . . . . . . . . . . . . . . . . . . . Repair Stations 1 | . . . . . . . . . . . . 1 . . . . . . . . . . Recycling Units . | . . . . . . . . . . . . . . . . . . . . . . . Scanalyzers 3 | . . . . . . . 1 . . . 1 . . . . . 1 . . . . . Garrison Access 2 | . . . . . . . . . . . 1 1 . . . . . . . . . . Total Hacks 74 | . 6 . 8 . 1 . 12 4 . . 7 8 . 1 17 . 6 . . 2 . 2 Successful 46 | . 3 . 2 . 1 . 7 1 . . 4 5 . 1 17 . 2 . . 2 . 1 Failed 27 | . 3 . 6 . . . 4 3 . . 3 3 . . . . 4 . . . . 1 Catastrophic 6 | . . . 1 . . . . . . . 2 1 . . . . 2 . . . . . Database Lockouts 1 | . . . . . . . 1 . . . . . . . . . . . . . . . Manual 34 | . 4 . 8 . 1 . 3 3 . . 4 4 . . . . 5 . . . . 2 Terminals 42 | . 6 . 8 . . . 8 4 . . 4 5 . . . . 5 . . . . 2 Fabricators . | . . . . . . . . . . . . . . . . . . . . . . . Repair Stations 2 | . . . . . . . . . . . . 2 . . . . . . . . . . Recycling Units . | . . . . . . . . . . . . . . . . . . . . . . . Scanalyzers 6 | . . . . . . . 4 . . . 1 . . . . . 1 . . . . . Garrison Access 3 | . . . . . . . . . . . 2 1 . . . . . . . . . . Terminal Hacks 31 | . . . 1 . 1 . 3 1 . . 2 2 . 1 17 . 1 . . 2 . . Record 6 | . . . . . . . . . . . . 1 . . 5 . . . . . . . Part Schematic 4 | . . . . . . . . . . . . . . . 4 . . . . . . . Robot Analysis 4 | . . . . . . . . . . . . . . . 4 . . . . . . . Prototype ID Bank 5 | . . . . . . . 1 . . . . . . . 4 . . . . . . . Open Door 3 | . . . . . . . . . . . . . . 1 . . . . . 2 . . Open DSF 1 | . . . . . . . . 1 . . . . . . . . . . . . . . Level Access Points 1 | . . . . . . . . . . . 1 . . . . . . . . . . . Branch Access Points 3 | . . . 1 . . . . . . . . 1 . . . . 1 . . . . . Emergency Access Points 1 | . . . . . . . 1 . . . . . . . . . . . . . . . Transport Status 1 | . . . . . . . . . . . 1 . . . . . . . . . . . Hauler Manifests 1 | . . . . . . . 1 . . . . . . . . . . . . . . . Proto ID Catalog 1 | . . . . . 1 . . . . . . . . . . . . . . . . . Fabricator Hacks . | . . . . . . . . . . . . . . . . . . . . . . . Repair Station Hacks 2 | . . . . . . . . . . . . 2 . . . . . . . . . . Scan Component 1 | . . . . . . . . . . . . 1 . . . . . . . . . . Repair 1 | . . . . . . . . . . . . 1 . . . . . . . . . . Recycling Unit Hacks . | . . . . . . . . . . . . . . . . . . . . . . . Scanalyzer 5 | . . . . . . . 3 . . . 1 . . . . . 1 . . . . . Retrieve Study 5 | . . . . . . . 3 . . . 1 . . . . . 1 . . . . . Garrison Access Hacks 1 | . . . . . . . . . . . . 1 . . . . . . . . . . Seal Access 1 | . . . . . . . . . . . . 1 . . . . . . . . . . Unauthorized Hacks 7 | . 3 . 1 . . . 1 . . . 1 . . . . . . . . . . 1 Terminals 7 | . 3 . 1 . . . 1 . . . 1 . . . . . . . . . . 1 Assimilate 4 | . 1 . 1 . . . 1 . . . 1 . . . . . . . . . . . Operators 1 | . 1 . . . . . . . . . . . . . . . . . . . . . Skim 1 | . 1 . . . . . . . . . . . . . . . . . . . . . Sabotage 1 | . . . . . . . . . . . . . . . . . . . . . . 1 Fabricators . | . . . . . . . . . . . . . . . . . . . . . . . Repair Stations . | . . . . . . . . . . . . . . . . . . . . . . . Recycling Units . | . . . . . . . . . . . . . . . . . . . . . . . Scanalyzers . | . . . . . . . . . . . . . . . . . . . . . . . Garrison Access . | . . . . . . . . . . . . . . . . . . . . . . . Data Cores Recovered . | . . . . . . . . . . . . . . . . . . . . . . . Used . | . . . . . . . . . . . . . . . . . . . . . . . Hacking Detections 15 | . 1 . 2 . . . 3 1 . . 1 2 . . . . 4 . . . . 1 Full Trace Events 1 | . . . 1 . . . . . . . . . . . . . . . . . . . Feedback Events . | . . . . . . . . . . . . . . . . . . . . . . . Feedback Blocked . | . . . . . . . . . . . . . . . . . . . . . . . Robot Schematics Acquired . | . . . . . . . . . . . . . . . . . . . . . . . Robots Built . | . . . . . . . . . . . . . . . . . . . . . . . Authchips . | . . . . . . . . . . . . . . . . . . . . . . . Time . | . . . . . . . . . . . . . . . . . . . . . . . Total Robot Build Rating . | . . . . . . . . . . . . . . . . . . . . . . . Part Schematics Acquired 4 | . . . . . . . . . . . . . . . 4 . . . . . . . Parts Built . | . . . . . . . . . . . . . . . . . . . . . . . Authchips . | . . . . . . . . . . . . . . . . . . . . . . . Time . | . . . . . . . . . . . . . . . . . . . . . . . Total Part Build Rating . | . . . . . . . . . . . . . . . . . . . . . . . Part Studies Acquired 5 | . . . . . . . 3 . . . 1 . . . . . 1 . . . . . Parts Repaired 1 | . . . . . . . . . . . . 1 . . . . . . . . . . Time 19 | . . . . . . . . . . . . 19 . . . . . . . . . . Parts Recycled . | . . . . . . . . . . . . . . . . . . . . . . . Recycled Matter . | . . . . . . . . . . . . . . . . . . . . . . . Retrieved Matter . | . . . . . . . . . . . . . . . . . . . . . . . Retrieved Components . | . . . . . . . . . . . . . . . . . . . . . . . Parts Scanalyzed . | . . . . . . . . . . . . . . . . . . . . . . . Part Schematics Acquired . | . . . . . . . . . . . . . . . . . . . . . . . Parts Damaged . | . . . . . . . . . . . . . . . . . . . . . . . Bothacking | -11 -10 -10 -9 -9 -9 -8 -8 -7 -7 -7 -6 -5 -5 -5 -5 -4 -4 -4 -4 -4 -3 -3 ------------ Run | Yrd Mat Min Mat Min Exi Min Mat Fac DSF Gar Fac Fac Upp Upp Zhi Pro Fac Upp Upp War Pro Res Used RIF Installer . | . . . . . . . . . . . . . . . . . . . . . . . Robots Hacked . | . . . . . . . . . . . . . . . . . . . . . . . Non-combat . | . . . . . . . . . . . . . . . . . . . . . . . Combat . | . . . . . . . . . . . . . . . . . . . . . . . Robot Hacks Applied . | . . . . . . . . . . . . . . . . . . . . . . . Relay Couplers Released . | . . . . . . . . . . . . . . . . . . . . . . . Fabnet Peak Effective % . | . . . . . . . . . . . . . . . . . . . . . . . Robots Rewired . | . . . . . . . . . . . . . . . . . . . . . . . Allies Hacked . | . . . . . . . . . . . . . . . . . . . . . . . Hacks Repelled . | . . . . . . . . . . . . . . . . . . . . . . . Allies | -11 -10 -10 -9 -9 -9 -8 -8 -7 -7 -7 -6 -5 -5 -5 -5 -4 -4 -4 -4 -4 -3 -3 -------- Run | Yrd Mat Min Mat Min Exi Min Mat Fac DSF Gar Fac Fac Upp Upp Zhi Pro Fac Upp Upp War Pro Res Total Allies 4 | . 1 . 1 . . . 1 . . . 1 . . . . . . . . . . . Largest Group 2 | . 1 1 2 1 . . 1 . . . 1 1 . . . . . . . . . . Highest-Rated Group 26 | . 10 10 20 10 . . 26 . . . 10 10 . . . . . . . . . . Highest-Rated Ally 26 | . 10 10 10 10 . . 26 . . . 10 10 . . . . . . . . . . Total Orders . | . . . . . . . . . . . . . . . . . . . . . . . Ally Attacks . | . . . . . . . . . . . . . . . . . . . . . . . Total Damage . | . . . . . . . . . . . . . . . . . . . . . . . Kills . | . . . . . . . . . . . . . . . . . . . . . . . Allies Corrupted . | . . . . . . . . . . . . . . . . . . . . . . . Allies Melted 1 | . . . . . . . . . . . . . . . . . . . . 1 . . Intel | -11 -10 -10 -9 -9 -9 -8 -8 -7 -7 -7 -6 -5 -5 -5 -5 -4 -4 -4 -4 -4 -3 -3 ------- Run | Yrd Mat Min Mat Min Exi Min Mat Fac DSF Gar Fac Fac Upp Upp Zhi Pro Fac Upp Upp War Pro Res Active Infowar (turns) 5518 | 2 127 70 137 149 182 120 265 164 43 164 882 627 77 229 102 256 663 99 348 812 . . Optics 92 | . . . . . . . 92 . . . . . . . . . . . . . . . Sensors 1867 | . . . . . . . . . . . . 1 71 229 102 254 39 99 337 735 . . Terrain 198 | . . . . . . . . . . . 198 . . . . . . . . . . . Seismic 787 | 2 127 70 137 149 182 120 . . . . . . . . . . . . . . . . Machine Analysis 4682 | . . . . . . . 265 164 43 164 882 627 77 229 102 256 663 99 348 763 . . Cloaking 935 | . . . . . . . . . . . . . . . . . 332 91 337 175 . . Robot Analysis Total 4 | . . . . . . . . . . . . . . . 4 . . . . . . . Derelict Logs Recovered 3 | . . . . . . . . . . . . . 1 . . 1 . . 1 . . . Drone Launches . | . . . . . . . . . . . . . . . . . . . . . . . Drone Recoveries . | . . . . . . . . . . . . . . . . . . . . . . . Exploration | -11 -10 -10 -9 -9 -9 -8 -8 -7 -7 -7 -6 -5 -5 -5 -5 -4 -4 -4 -4 -4 -3 -3 ------------- Run | Yrd Mat Min Mat Min Exi Min Mat Fac DSF Gar Fac Fac Upp Upp Zhi Pro Fac Upp Upp War Pro Res Turns Passed 7108 | 84 127 70 137 149 182 135 701 164 43 164 882 627 77 229 102 256 663 99 348 825 270 774 Spaces Moved 10791 | 69 199 131 225 289 346 260 969 303 73 153 1232 881 142 422 153 465 961 182 420 1265 460 1191 Core 10790 | 69 199 131 225 289 346 260 969 303 73 153 1232 881 142 422 153 465 961 182 420 1264 460 1191 Treads . | . . . . . . . . . . . . . . . . . . . . . . . Legs . | . . . . . . . . . . . . . . . . . . . . . . . Wheels . | . . . . . . . . . . . . . . . . . . . . . . . Hover 1 | . . . . . . . . . . . . . . . . . . . . 1 . . Flight . | . . . . . . . . . . . . . . . . . . . . . . . Fastest Speed 50 | 50 50 50 50 50 50 50 50 50 50 50 50 50 50 50 50 50 50 50 50 50 50 50 Average Speed 51 | 50 50 50 50 50 50 50 50 50 50 50 58 50 50 50 50 50 50 50 50 50 50 50 Slowest Speed 200 | 50 50 50 50 50 50 50 100 50 50 50 150 100 50 50 50 50 50 50 50 200 100 50 Overloaded Moves . | . . . . . . . . . . . . . . . . . . . . . . . Propulsion Burnouts . | . . . . . . . . . . . . . . . . . . . . . . . Robots Hopped . | . . . . . . . . . . . . . . . . . . . . . . . Potential Cave-ins . | . . . . . . . . . . . . . . . . . . . . . . . Cave-ins Triggered . | . . . . . . . . . . . . . . . . . . . . . . . Exploration Rate (%) 44 | 4 46 37 27 55 60 79 57 7 46 31 32 23 36 65 60 72 22 41 52 78 66 31 Regions Visited 22 Branch Regions 12 Pre-discovered Areas 3 | . . . . . . . . . . . . . . . 3 . . . . . . . Known Exits Taken 12 | . . . 1 . . . 1 1 . . 1 1 1 1 1 1 1 1 1 . . . Unknown Exits Taken 8 | 1 1 1 . 1 1 1 . . . . . . . . . . . . . 1 1 . Scrap Searched 8 | . . . . 1 . 1 . . . . . . . 1 . 2 . 2 1 . . . Spaces Dug 90 | . . . 1 . . . 10 3 1 1 5 13 . 3 . 2 10 . 2 1 . 38 Terrain Destroyed 354 | . . . 1 . . . 10 3 1 1 5 13 21 3 . 40 10 . 2 1 69 174 Melee 68 | . . . 1 . . . 10 3 1 1 5 13 . 3 . 2 10 . 2 1 . 16 Projectile . | . . . . . . . . . . . . . . . . . . . . . . . AOE 286 | . . . . . . . . . . . . . 21 . . 38 . . . . 69 158 Terrain Rammed . | . . . . . . . . . . . . . . . . . . . . . . . Walls Destroyed . | . . . . . . . . . . . . . . . . . . . . . . . Machines Disabled . | . . . . . . . . . . . . . . . . . . . . . . . Actions | -11 -10 -10 -9 -9 -9 -8 -8 -7 -7 -7 -6 -5 -5 -5 -5 -4 -4 -4 -4 -4 -3 -3 --------- Run | Yrd Mat Min Mat Min Exi Min Mat Fac DSF Gar Fac Fac Upp Upp Zhi Pro Fac Upp Upp War Pro Res Total 12054 | 102 212 134 251 290 357 262 1109 308 75 238 1369 1025 145 431 166 475 1118 189 554 1453 490 1301 Wait 853 | 21 3 4 12 . . . 62 . . 70 96 92 . 5 . . 131 8 133 167 15 34 Move 10769 | 68 198 130 224 288 345 259 968 302 72 152 1231 880 141 421 152 464 960 181 419 1264 459 1191 Hop . | . . . . . . . . . . . . . . . . . . . . . . . Pick Up 45 | 2 3 . 4 . 6 . 3 1 . . 9 9 . . 1 . 1 . . 1 2 3 Fast Attach 45 | 3 1 . . . . 1 7 1 . . 4 3 . . 3 . 7 . . 6 . 9 Attach 23 | . . . 3 . . . 2 . . . 1 2 1 . 1 1 1 . . 2 3 6 Detach 18 | . . . 1 . . . 2 . . . . 1 1 . . 1 . . . 2 3 7 Swap 9 | . . . 2 . . . 1 . . . 1 2 . . . . 2 . . . . 1 Drop 53 | . . . 4 . 6 1 6 . . . 9 8 . . 2 . 2 . . 10 2 3 Fire 90 | 8 7 . . 1 . . 33 . 2 . 7 . 2 . . 3 . . . . 6 21 Melee 132 | . . . 1 1 . 1 25 4 1 1 11 28 . 5 7 6 14 . 2 1 . 24 Ram 2 | . . . . . . . . . . . . . . . . . . . . . . 2 Kick . | . . . . . . . . . . . . . . . . . . . . . . . Crush . | . . . . . . . . . . . . . . . . . . . . . . . Escape Stasis 15 | . . . . . . . . . . 15 . . . . . . . . . . . . Rewire . | . . . . . . . . . . . . . . . . . . . . . . . Trap . | . . . . . . . . . . . . . . . . . . . . . . . Miscellaneous . | . . . . . . . . . . . . . . . . . . . . . . . Route ------- -11/Scrapyard -10/Materials (discovered 2 exits: *Mat / [*Min]) -10/Mines -9/Materials (discovered 4 exits: *Min x2 / *Sto x2) -9/Mines (discovered 2 exits: *Mat / *Exi) -9/Exiles -8/Mines -8/Materials -7/Factory -7/DSF -7/Garrison -6/Factory (discovered 5 exits: *Fac x4 / *Low) -5/Factory (discovered 2 exits: *Upp x2) -5/Upper Caves -5/Upper Caves -5/Zhirov -4/Proximity Caves -4/Factory (discovered 5 exits: *Upp x2 / *Ext x2 / Arm) -4/Upper Caves -4/Upper Caves -4/Warlord -3/Proximity Caves -3/Research (discovered 1 exit: *Tes) History --------- Turn | Location | Event 12 | -11/Scrapyard | Discovered new exit (range 16) 85 | -11/Scrapyard | Entered Materials 127 | -10/Materials | Discovered new exit (range 5) 202 | -10/Materials | Discovered new exit (range 13) 212 | -10/Materials | Entered Mines 212 | -10/Mines | Accompanied by 1 ally 275 | -10/Mines | Discovered new exit (range 7) 282 | -10/Mines | Entered Materials 282 | -9/Materials | Accompanied by 1 ally 282 | -9/Materials | Evolved 1 slot: Utility x1 333 | -9/Materials | Build established: Mutant 344 | -9/Materials | Identified exit to Mines 344 | -9/Materials | Identified exit to Storage 419 | -9/Materials | Entered Mines 419 | -9/Mines | Accompanied by 1 ally 421 | -9/Mines | Met a Derelict bent on vengeance 470 | -9/Mines | Discovered new exit (range 5) 566 | -9/Mines | Deemed a non-threat by the Exiles lab entrance 566 | -9/Mines | Discovered new exit (range 5) 568 | -9/Mines | Entered Exiles 583 | -9/Exiles | Met 8R-AWN 591 | -9/Exiles | Met EX-HEX 604 | -9/Exiles | Met EX-BIN 630 | -9/Exiles | Aligned with FarCom system 630 | -9/Exiles | Given EX-Vault access code 642 | -9/Exiles | Opened EX-Vault 646 | -9/Exiles | Found Latent Energy Streamer 656 | -9/Exiles | Warned to stay clear of 0b10 Research branches 693 | -9/Exiles | Found Deploy-a-Sentry 694 | -9/Exiles | Found Deploy-a-Sentry 696 | -9/Exiles | Found Deploy-a-Sentry 724 | -9/Exiles | Met EX-DEC 746 | -9/Exiles | Discovered new exit (range 10) 750 | -9/Exiles | Left Exiles lab with Deploy-a-Sentry 750 | -9/Exiles | Entered Mines 880 | -8/Mines | Discovered new exit (range 10) 885 | -8/Mines | Entered Materials 885 | -8/Materials | Evolved 1 slot: Utility x1 1151 | -8/Materials | Central database locked down 1309 | -8/Materials | Lost 3 parts (2u1w) 1583 | -8/Materials | Discovered new exit (range 4) 1586 | -8/Materials | Identified exit to Factory 1586 | -8/Materials | Entered Factory 1586 | -7/Factory | Evolved 1 slot: Utility x1 1748 | -7/Factory | Identified exit to DSF 1750 | -7/Factory | Entered DSF 1771 | -7/DSF | Additional patrols routed to DSF 1783 | -7/DSF | Discovered new exit (range 15) 1790 | -7/DSF | Identified exit to Garrison 1793 | -7/DSF | Entered Garrison 1881 | -7/Garrison | Triggered checkpoint 1896 | -7/Garrison | Heavy support dispatched to Factory 1904 | -7/Garrison | Discovered new exit (range 15) 1954 | -7/Garrison | Identified exit to Factory 1957 | -7/Garrison | Entered Factory 1957 | -6/Factory | Evolved 1 slot: Utility x1 2521 | -6/Factory | Discovered new exit (range 3) 2522 | -6/Factory | Identified exit to Lower Caves 2689 | -6/Factory | Identified exit to Factory 2839 | -6/Factory | Entered another Factory area 2839 | -5/Factory | Accompanied by 1 ally 2839 | -5/Factory | Evolved 1 slot: Utility x1 2963 | -5/Factory | Repaired Adv. Weight Redist. System 3272 | -5/Factory | Identified exit to Upper Caves 3276 | -5/Factory | Build established: Scout 3466 | -5/Factory | Entered Upper Caves 3499 | -5/Upper Caves | Identified exit to Upper Caves 3543 | -5/Upper Caves | Entered another Upper Caves area 3768 | -5/Upper Caves | Discovered new exit (range 6) 3771 | -5/Upper Caves | Identified exit to Zhirov 3772 | -5/Upper Caves | Entered Zhirov 3772 | -5/Zhirov | Discovered new exit (range 3) 3782 | -5/Zhirov | Met Zhirov 3791 | -5/Zhirov | Learned location of Quarantine (-2) 3791 | -5/Zhirov | Learned location of Testing (-3) 3791 | -5/Zhirov | Learned location of Command (-1) 3796 | -5/Zhirov | Zhirov requested help retrieving the SGEMP Prototype 3809 | -5/Zhirov | Found Alien Artifact 3809 | -5/Zhirov | Identified Integrated Reactor 3809 | -5/Zhirov | Installed Integrated Reactor, increased core energy generation (+10) 3856 | -5/Zhirov | Found Alien Artifact 3874 | -5/Zhirov | Identified exit to Proximity Caves 3874 | -5/Zhirov | Entered Proximity Caves 3877 | -4/Proximity Caves | Spotter reported a threat 4046 | -4/Proximity Caves | Learned Research terminal intel 4074 | -4/Proximity Caves | Spotted B-86 Titan 4112 | -4/Proximity Caves | Build established: Hacker-Scout 4125 | -4/Proximity Caves | Discovered new exit (range 6) 4127 | -4/Proximity Caves | Attracted the attention of an 0b10 checkpoint 4127 | -4/Proximity Caves | Identified exit to Factory 4130 | -4/Proximity Caves | Entered Factory 4130 | -4/Factory | Evolved 1 slot: Utility x1 4356 | -4/Factory | Discovered new exit (range 5) 4358 | -4/Factory | Identified exit to Extension 4726 | -4/Factory | Build established: Ninja 4741 | -4/Factory | Identified exit to Upper Caves 4741 | -4/Factory | Identified exit to Armory 4793 | -4/Factory | Entered Upper Caves 4888 | -4/Upper Caves | Discovered new exit (range 8) 4892 | -4/Upper Caves | Identified exit to Upper Caves 4892 | -4/Upper Caves | Entered another Upper Caves area 4902 | -4/Upper Caves | Identified exit to Warlord 5240 | -4/Upper Caves | Entered Warlord 5314 | -4/Warlord | Visited the Vortex Lab 5319 | -4/Warlord | Warlord's base attacked by MAIN.C 5320 | -4/Warlord | Found Prototype Launcher 5320 | -4/Warlord | Identified Vortex Catalyst Activator 5368 | -4/Warlord | Met Warlord 5413 | -4/Warlord | Opened side exit 5438 | -4/Warlord | Spotted B-86 Titan 5669 | -4/Warlord | Warlord forces counterattacked 5734 | -4/Warlord | Lost 3 allies 5818 | -4/Warlord | Spotted Executioner 5818 | -4/Warlord | Spotted Striker 5852 | -4/Warlord | Lost 14 allies 5974 | -4/Warlord | Lost 3 allies 5994 | -4/Warlord | Warlord base infiltrated, sounded retreat 5999 | -4/Warlord | Spotted Executioner 6045 | -4/Warlord | Spotted Striker 6048 | -4/Warlord | Spotted Executioner 6061 | -4/Warlord | Discovered new exit (range 8) 6065 | -4/Warlord | Entered Proximity Caves 6152 | -3/Proximity Caves | Spotted B-86 Titan 6242 | -3/Proximity Caves | Attracted the attention of an 0b10 outpost 6280 | -3/Proximity Caves | Attracted the attention of an 0b10 checkpoint 6310 | -3/Proximity Caves | Core integrity fell below 50% 6324 | -3/Proximity Caves | Build established: Mutant 6328 | -3/Proximity Caves | Discovered new exit (range 15) 6332 | -3/Proximity Caves | Lost 3 parts (2u1w) 6335 | -3/Proximity Caves | Entered Research 6335 | -3/Research | Evolved 1 slot: Utility x1 6336 | -3/Research | Loaded intel: 23 terminal locations 6413 | -3/Research | Found Prototype Processor 6413 | -3/Research | Identified Spectral Analyzer 6492 | -3/Research | Found Fusion Bomb Launcher 6598 | -3/Research | Core integrity fell below 50% 6680 | -3/Research | Discovered new exit (range 5) 6681 | -3/Research | Identified exit to Testing 6693 | -3/Research | Found Fusion Bomb Launcher 6695 | -3/Research | Core integrity fell below 20% 6834 | -3/Research | Found Fusion Bomb Launcher 6835 | -3/Research | First assault squad dispatched 7109 | -3/Research | Destroyed by Y-72 Warden with Railgun Last Messages --------------- 06914_ U-05 Engineer builds a Wall. 06928_ System corrupted: Heat flow error (+145). 06932_ U-05 Engineer builds a Wall. 06947_ System corrupted: Energy discharge (-40). 06985_ U-05 Engineer builds a Wall. 07005_ ALERT: Potential suspicious activity detected, Programmers report to Research Zone 6W. 07033_ System corrupted: Energy discharge (-28). 07082_ Acquired Adv. Signal Interpreter. 07085_ ALERT: Unidentified disturbance in Zone 3X, assault force dispatched. 07096_ Sneak attack on T-07 Excavator. 07096_ T-07 Excavator suffers critical hit (Smash). 07096_ Destroyed Imp. Terrain Scanner. 07096_ Destroyed Lgt. Ion Engine. 07096_ T-07 Excavator system corrupted by crushing effect. 07096_ T-07 Excavator knocked back. 07097_ T-07 Excavator system terminally corrupted. 07097_ Wheel fried. 07099_ Acquired 19 matter. Map ----- +----------------------------------------------------+ | ?????????????????????????????????????????????????? | | ?????????????????????????????????????????????????? | | ?????????????????????????????????????????????????? | | ?????????????????????????????????????????????????? | | ?????????????????????????????????????????????????? | | ?????????????????????????????????????????????????? | | ?????????????????????????????????????????????????? | | ?????????????????????????????????????????????????? | | ?????????????????????????????????????????????????? | | ?????????????????????????????????????????????????? | | ?????????????????????????????????????????????????? | | ?????????????????????????????????????????????????? | | ????????????????????????#######Y#????????????????? | | ???????????????????????# ??????????????? | | ???????????????????????# ???#???????????? | | ???????????????????????# ??? ???????????? | | ???????????????????????# ""??? ???????????? | | ???????????????????????# "" ? ???????????? | | ???????????????????????# !=! "" ?? ???????????? | | ???????????????????????# ==! S ?? ??########## | | ???????????????????????# == "" ?# #?# | | ???????????????????????# ""??# #?# | | ???????????????????????# ????# #?# | | ???????????????????????# ??????# #?# | | ???????????????????????# ????????# #?# | | ????????????????????????#@#+#???????# #?# | | ????????????????????????# #???????# #?# | | ????????????????????????# #???????# #?# | | ????????????????????????# #???#####+###+#####+## | | ????????????????????????# #???# ## | | ????????????????????????# #???# ## | | ????????????????????????# ##### ## | | ????????????????????????# + + | | ????????????????????????# ##### ######+#### | | T"????????????????????### #???# #???? ??? | | ??????????????????????# #???########???? ??? | | ??????????????????????# #??????????????"" ?? | | ??????????????????????# #??????????????"" ?? | | ??????????????????????# k +?????????????""" ""? | | ??????????????????????# #????????????? ""? | | ??????????????????????# #????????????? """ | | ??????????????????????# #???????????????" F? | | ??????????????????????# #???????????????" "?? | | ??????????????????????# #???????????????" "?? | | ??????????????????????# #???????????????? ?? | | ??????????????????????# ###?????????????? ?? | | ??????????????????????# ] ?????????????###?? | | ??????????????????????# ????????????????? | | ??????????????????????# ################ | | ??????????????????????# !! | +----------------------------------------------------+ Best States ------------- Heat Dissipation 46 Energy Generation 21 Energy Capacity 325 Matter Stores 450 Matter Capacity 450 Sight Range 20 Robot Scan Range 16 Terrain Scan Range 16 Terrain Scan Density 10 Cloak Strength 2 Additional Mass Support 9 Evasion (%) 50 Targeting Accuracy 8 Melee Accuracy 6 Target Analysis 8 Offensive Hacking 12 Defensive Hacking 14 Item Schematics ----------------- Assault Drone Bay | -5/Zhirov | Free Exp. Heat Sink | -5/Zhirov | Free Exp. Optical Array | -5/Zhirov | Free Imp. Arc Thrower | -5/Zhirov | Free Robot Schematics ------------------ None Fabricated ------------ Nothing Repaired ---------- Adv. Weight Redist. System | 58% | -5/Factory Studied --------- Flail | -8/Materials | Hacked Lgt. Ion Engine | -8/Materials | Hacked Mace | -8/Materials | Hacked Spear | -6/Factory | Hacked Hvy. Missile Launcher | -4/Factory | Hacked Alien Tech Used ----------------- Integrated Reactor Achievements -------------- None Challenges ------------ Inhibited Evolution Game ------ Seed CooledBombJammer Manual? 0 Play Time 01:56:04 Cumulative 227.1 hours Start 2026.06.19 @ 22:44:17 End 2026.06.20 @ 01:02:48 Sessions 1 Manual Loads 0 Difficulty Rogue Special Mode None Game No. 111 Rogue 111 Adventurer 0 Explorer 0 Win Type - Total 11 Types 8/1/1/0/0/0/0/0/0/1 Lore% 74 Gallery% 70 Achievement% 68 Wizard Run 0 Options --------- Layout 0 ASCII 0 Keyboard 1 Movement Arrows Keybinds 0 Fullscreen 2 Font 18/SmallcapsGlow Map View 76x50 Zoom Use 0% Tactical HUD 1 Map Filters NONE Filters NONE Steam 1 RUN: dc9faf29-a9f5-4122-82fe-fdf98d373b09